fUST/lending_fUST_20251031
["ID","MTS","AMOUNT","RATE_DAILY","PERIOD"]
[392753166,1761916246963,-500.0,0.00034615,4]
[392753167,1761916246975,-500.0,0.00034615,4]
[392753168,1761916246988,-500.0,0.00034615,4]
[392753169,1761916247001,-512.83555963,0.00034615,4]
[392753170,1761916247013,-500.0,0.00034615,4]
[392753171,1761916247028,-500.0,0.00034615,4]
[392753172,1761916247040,-500.0,0.00034615,4]
[392753173,1761916247052,-500.0,0.00034615,4]
[392753174,1761916247064,-500.0,0.00034615,4]
[392753175,1761916247078,-500.0,0.00034615,4]
[392753176,1761916247090,-500.0,0.00034615,4]
[392753177,1761916247102,-500.0,0.00034615,4]
[392753178,1761916247115,-500.0,0.00034615,4]
[392753179,1761916247128,-500.0,0.00034615,4]
[392753180,1761916247141,-500.0,0.00034615,4]
[392753181,1761916247154,-500.0,0.00034615,4]
[392753182,1761916247167,-557.35,0.00034615,4]
[392753183,1761916247180,-500.0,0.00034615,4]
[392753184,1761916247193,-500.0,0.00034615,4]
[392753185,1761916247206,-500.0,0.00034615,4]
[392753186,1761916247219,-989.84,0.00034615,4]
[392753187,1761916247232,-500.0,0.00034615,4]
[392753188,1761916247244,-500.0,0.00034615,4]
[392753189,1761916247256,-500.0,0.00034615,4]
[392753190,1761916247269,-500.0,0.00034615,4]
[392753191,1761916247282,-504.54091868,0.00034615,4]
[392753192,1761916247294,-500.0,0.00034615,4]
[392753193,1761916247307,-500.0,0.00034615,4]
[392753194,1761916247318,-500.0,0.00034615,4]
[392753195,1761916247327,-502.19831409,0.00034615,4]
[392753196,1761916247336,-500.0,0.00034615,4]
[392753197,1761916247345,-500.0,0.00034615,4]
[392753198,1761916247463,-500.0,0.00034615,4]
[392753199,1761916247473,-500.0,0.00034615,4]
[392753200,1761916247483,-500.0,0.00034615,4]
[392753201,1761916247492,-500.0,0.00034615,4]
[392753202,1761916247501,-500.0,0.00034615,4]
[392753203,1761916247509,-518.73827143,0.00034615,4]
[392753204,1761916247519,-429.72448474,0.00034615,4]
[392753205,1761916247528,-149.64861976,0.00034615,4]
[392753208,1761916255196,1085.88424164,0.00026,3]
[392753212,1761916263096,2009.92587902,0.00026,3]
[392753215,1761916270680,-304.49684809,0.00026,3]
[392753216,1761916276948,-595.38233681,0.00026,3]
[392753217,1761916279855,-491.74593744,0.00026,3]
[392753218,1761916284888,-290.88548872,0.00026,3]
[392753219,1761916291717,-787.36917347,0.00026,3]
[392753220,1761916293556,-155.71259973,0.00026,3]
[392753221,1761916301853,-160.7605122,0.00026,3]
[392753222,1761916321201,-203.72122452,0.00026,3]
[392753223,1761916329144,2786.35289646,0.000255,2]
[392753224,1761916352031,295.79324258,0.000255,2]
[392753235,1761916749129,218.66625,0.00013699,2]
[392753236,1761916749346,218.66625,0.00020187,2]
[392753253,1761917124713,1005.0,0.0002,3]
[392753257,1761917141033,150.0,0.00025376,2]
[392753259,1761917255345,20547.0,0.00037217,60]
[392753306,1761917432505,-200.0,0.00026676,2]
[392753308,1761917432515,-218.66625,0.00026676,2]
[392753310,1761917432524,-187.6854627,0.00031767,60]
[392753312,1761917432540,-300.0,0.00032915,3]
[392753314,1761917432550,-300.0,0.00032915,3]
[392753316,1761917432559,-253.0,0.00032916,3]
[392753318,1761917432569,-1200.0,0.00032916,3]
[392753320,1761917432578,-8400.3010874,0.00032917,2]
[392753322,1761917432587,-644.62541553,0.0003301,2]
[392753324,1761917432597,-151.0,0.0003301,2]
[392753326,1761917432606,-252.40286522,0.0003301,2]
[392753328,1761917432616,-218.66625,0.00033165,2]
[392753330,1761917432624,-562.52887656,0.00033449,2]
[392753332,1761917432634,-500.0,0.00033544,4]
[392753334,1761917432643,-500.0,0.00033545,7]
[392753336,1761917432652,-500.0,0.00033545,7]
[392753338,1761917432662,-361.71379753,0.00033545,7]
[392753340,1761917432671,-500.0,0.00033545,7]
[392753342,1761917432679,-500.0,0.00033545,7]
[392753344,1761917432689,-500.0,0.00033545,7]
[392753346,1761917432697,-500.0,0.00033545,7]
[392753348,1761917432706,-500.0,0.00033545,2]
[392753350,1761917432715,-271.94773511,0.00033545,7]
[392753352,1761917432724,-500.0,0.00033545,7]
[392753354,1761917432733,-500.0,0.00033545,7]
[392753356,1761917432742,-500.0,0.00033545,2]
[392753358,1761917432752,-500.0,0.00033545,7]
[392753361,1761917432763,-500.0,0.00033545,7]
[392753363,1761917432772,-500.0,0.00033545,7]
[392753365,1761917432782,-500.0,0.00033545,7]
[392753367,1761917432791,-332.99730771,0.00033545,7]
[392753369,1761917432803,-113.80583448,0.00033545,7]
[392753371,1761917432812,-231.24075786,0.00033545,7]
[392753374,1761917432826,-268.75924214,0.00033545,7]
[392753375,1761917432835,-410.44877133,0.00033545,7]
[392753377,1761917432844,-500.0,0.00033545,7]
[392753378,1761917432853,-500.0,0.00033545,7]
[392753379,1761917432863,-500.0,0.00033545,7]
[392753380,1761917432872,-500.0,0.00033545,7]
[392753381,1761917432881,-500.0,0.00033545,7]
[392753382,1761917432890,-500.0,0.00033545,7]
[392753384,1761917432899,-500.0,0.00033545,7]
[392753385,1761917432908,-500.0,0.00033545,7]
[392753386,1761917432918,-500.0,0.00033545,4]
[392753387,1761917432927,-1.29600269,0.00033545,4]
[392753392,1761917438488,-498.70399731,0.00033545,4]
[392753393,1761917438510,-500.0,0.00033545,4]
[392753394,1761917438532,-301.27461495,0.00033545,4]
[392753395,1761917438554,-500.0,0.00033545,4]
[392753396,1761917438577,-500.0,0.00033545,4]
[392753398,1761917438599,-503.46946741,0.00033545,4]
[392753400,1761917438623,-500.0,0.00033545,4]
[392753402,1761917438645,-500.0,0.00033545,4]
[392753404,1761917438668,-500.0,0.00033545,4]
[392753406,1761917438688,-500.0,0.00033545,4]
[392753408,1761917438709,-500.0,0.00033545,4]
[392753410,1761917438723,-500.0,0.00033545,4]
[392753412,1761917438732,-500.0,0.00033545,4]
[392753414,1761917438741,-2548.96,0.00033545,4]
[392753416,1761917438750,-500.0,0.00033545,4]
[392753418,1761917438759,-500.0,0.00033546,4]
[392753420,1761917438769,-467.8,0.00033546,2]
[392753422,1761917438778,-505.37063779,0.00033546,4]
[392753431,1761917438868,-269.93100682,0.00033546,4]
[392753434,1761917438884,-230.06899318,0.00033546,4]
[392753436,1761917438894,-512.85163918,0.00033546,4]
[392753478,1761917440771,-155.07539467,0.00033447,2]
[392753479,1761917440781,-500.0,0.00033544,2]
[392753480,1761917440790,-0.96455872,0.00033546,4]
[392753481,1761917440799,-500.0,0.00033546,4]
[392753482,1761917440808,-979.3,0.00033546,4]
[392753483,1761917440817,-500.0,0.00033546,4]
[392753484,1761917440826,-500.0,0.00033546,4]
[392753485,1761917440836,-500.0,0.00033546,4]
[392753486,1761917440845,-500.0,0.00033546,4]
[392753487,1761917440854,-500.0,0.00033546,4]
[392753488,1761917440863,-500.0,0.00033546,4]
[392753489,1761917440872,-581.53901657,0.00033546,4]
[392753490,1761917440882,-500.0,0.00033546,4]
[392753491,1761917440891,-500.0,0.00033546,4]
[392753492,1761917440900,-503.09874799,0.00033546,4]
[392753493,1761917440909,-500.0,0.00033546,4]
[392753494,1761917440918,-500.0,0.00033546,4]
[392753495,1761917440927,-500.0,0.00033546,4]
[392753496,1761917440936,-500.0,0.00033546,4]
[392753497,1761917440945,-500.0,0.00033546,4]
[392753498,1761917440954,-500.0,0.00033546,4]
[392753499,1761917440963,-500.0,0.00033546,4]
[392753500,1761917440972,-500.0,0.00033546,4]
[392753501,1761917440981,-500.0,0.00033546,4]
[392753502,1761917440990,-500.0,0.00033546,4]
[392753503,1761917440999,-500.0,0.00033546,4]
[392753504,1761917441008,-500.0,0.00033546,4]
[392753505,1761917441018,-500.0,0.00033546,4]
[392753506,1761917441027,-500.0,0.00033546,4]
[392753507,1761917441036,-500.0,0.00033546,4]
[392753508,1761917441045,-500.0,0.00033546,4]
[392753509,1761917441054,-500.0,0.00033546,4]
[392753510,1761917441063,-500.0,0.00033546,4]
[392753511,1761917441072,-500.0,0.00033546,4]
[392753512,1761917441081,-500.0,0.00033546,4]
[392753513,1761917441090,-500.0,0.00033546,4]
[392753514,1761917441100,-500.0,0.00033546,4]
[392753515,1761917441109,-534.13,0.00033546,4]
[392753516,1761917441118,-500.0,0.00033546,4]
[392753517,1761917441127,-502.54624284,0.00033546,4]
[392753518,1761917441137,-948.59,0.00033546,4]
[392753519,1761917441146,-500.0,0.00033546,4]
[392753520,1761917441155,-500.0,0.00033546,4]
[392753521,1761917441164,-500.0,0.00033546,4]
[392753522,1761917441172,-500.0,0.00033546,4]
[392753523,1761917441181,-151.0,0.00033546,31]
[392753524,1761917441190,-151.0,0.00033546,2]
[392753525,1761917441200,-500.0,0.00033546,4]
[392753526,1761917441209,-500.0,0.00033546,4]
[392753527,1761917441219,-500.0,0.00033546,4]
[392753528,1761917441228,-500.0,0.00033546,4]
[392753529,1761917441237,-500.0,0.00033546,4]
[392753530,1761917441247,-500.0,0.00033546,4]
[392753531,1761917441256,-151.0,0.00033546,31]
[392753532,1761917441267,-191.485654,0.00033546,31]
[392753533,1761917441276,-500.0,0.00033546,4]
[392753534,1761917441285,-500.0,0.00033546,4]
[392753535,1761917441295,-500.0,0.00033546,4]
[392753536,1761917441304,-500.0,0.00033546,4]
[392753537,1761917441313,-503.61300571,0.00033546,4]
[392753538,1761917441322,-500.0,0.00033546,4]
[392753539,1761917441331,-154.626062,0.00033546,31]
[392753540,1761917441340,-500.0,0.00033546,4]
[392753541,1761917441349,-500.0,0.00033546,4]
[392753542,1761917441357,-500.0,0.00033546,4]
[392753543,1761917441367,-500.0,0.00033546,4]
[392753544,1761917441376,-500.0,0.00033546,4]
[392753545,1761917441385,-500.0,0.00033546,4]
[392753546,1761917441394,-151.0,0.00033546,31]
[392753547,1761917441404,-500.0,0.00033546,4]
[392753548,1761917441413,-151.0,0.00033546,31]
[392753549,1761917441425,-500.0,0.00033546,4]
[392753550,1761917441435,-151.0,0.00033546,31]
[392753551,1761917441445,-151.0,0.00033546,31]
[392753552,1761917441455,-431.5313175,0.00033546,4]
[392753553,1761917441471,-68.4686825,0.00033546,4]
[392753554,1761917441480,-500.0,0.00033546,4]
[392753555,1761917441489,-151.031039,0.00033546,31]
[392753556,1761917441499,-503.35505952,0.00033546,4]
[392753557,1761917441508,-500.0,0.00033546,4]
[392753558,1761917441519,-500.0,0.00033546,4]
[392753559,1761917441528,-500.0,0.00033546,4]
[392753560,1761917441537,-151.0,0.00033546,31]
[392753561,1761917441546,-515.64430185,0.00033546,4]
[392753562,1761917441556,-500.0,0.00033546,4]
[392753563,1761917441564,-159.221741,0.00033546,31]
[392753564,1761917441575,-500.0,0.00033546,4]
[392753565,1761917441586,-500.0,0.00033546,4]
[392753566,1761917441595,-500.0,0.00033546,4]
[392753567,1761917441604,-500.0,0.00033546,4]
[392753568,1761917441614,-500.0,0.00033546,4]
[392753569,1761917441623,-151.0,0.00033546,31]
[392753570,1761917441632,-500.0,0.00033546,4]
[392753571,1761917441641,-151.0,0.00033546,31]
[392753572,1761917441650,-500.0,0.00033546,4]
[392753573,1761917441659,-151.0,0.00033546,31]
[392753574,1761917441737,-500.0,0.00033546,4]
[392753575,1761917441746,-500.0,0.00033546,4]
[392753576,1761917441755,-500.0,0.00033546,4]
[392753577,1761917441767,-151.0,0.00033546,31]
[392753578,1761917441777,-151.0,0.00033546,31]
[392753579,1761917441786,-500.0,0.00033546,4]
[392753580,1761917441796,-412.544465,0.00033546,31]
[392753581,1761917441805,-412.544465,0.00033546,31]
[392753582,1761917441814,-157.783989,0.00033546,31]
[392753583,1761917441823,-500.0,0.00033546,4]
[392753584,1761917441832,-412.544465,0.00033546,31]
[392753585,1761917441841,-151.0,0.00033546,31]
[392753586,1761917441850,-412.544465,0.00033546,31]
[392753587,1761917441859,-151.0,0.00033546,31]
[392753588,1761917441869,-412.544465,0.00033546,31]
[392753589,1761917441878,-412.544465,0.00033546,31]
[392753590,1761917441887,-151.0,0.00033546,31]
[392753591,1761917441897,-500.0,0.00033546,4]
[392753592,1761917441906,-151.0,0.00033546,31]
[392753593,1761917441915,-412.544465,0.00033546,31]
[392753594,1761917441924,-412.544465,0.00033546,31]
[392753595,1761917441934,-500.0,0.00033546,2]
[392753596,1761917441943,-500.0,0.00033546,4]
[392753597,1761917441951,-500.0,0.00033546,4]
[392753598,1761917441960,-500.0,0.00033546,4]
[392753599,1761917441970,-151.0,0.00033546,31]
[392753600,1761917441978,-500.0,0.00033546,4]
[392753601,1761917441987,-151.0,0.00033546,31]
[392753602,1761917441996,-509.66752891,0.00033546,4]
[392753603,1761917442006,-169.998545,0.00033546,31]
[392753604,1761917442017,-169.998545,0.00033546,31]
[392753605,1761917442026,-500.0,0.00033546,4]
[392753606,1761917442034,-169.998545,0.00033546,31]
[392753607,1761917442043,-169.998545,0.00033546,31]
[392753608,1761917442053,-500.0,0.00033546,4]
[392753609,1761917442062,-169.998545,0.00033546,31]
[392753610,1761917442071,-169.998545,0.00033546,31]
[392753611,1761917442080,-169.998545,0.00033546,31]
[392753612,1761917442089,-169.998545,0.00033546,31]
[392753613,1761917442098,-500.0,0.00033546,4]
[392753614,1761917442107,-690.858623,0.00033546,31]
[392753615,1761917442116,-690.858623,0.00033546,31]
[392753616,1761917442125,-690.858623,0.00033546,31]
[392753617,1761917442135,-690.858623,0.00033546,31]
[392753618,1761917442144,-500.0,0.00033546,4]
[392753619,1761917442153,-690.858623,0.00033546,31]
[392753620,1761917442163,-690.858623,0.00033546,31]
[392753621,1761917442172,-690.858623,0.00033546,31]
[392753622,1761917442182,-690.858623,0.00033546,31]
[392753623,1761917442191,-10422.68,0.00033547,4]
[392753624,1761917442200,-500.0,0.00033547,4]
[392753625,1761917442209,-583.06,0.00033547,4]
[392753626,1761917442218,-500.0,0.00033547,4]
[392753627,1761917442227,-500.0,0.00033547,4]
[392753628,1761917442236,-500.0,0.00033547,4]
[392753629,1761917442245,-500.0,0.00033547,4]
[392753630,1761917442254,-500.0,0.00033547,4]
[392753631,1761917442265,-500.0,0.00033547,4]
[392753632,1761917442274,-151.0,0.00033547,31]
[392753633,1761917442283,-500.0,0.00033547,4]
[392753634,1761917442292,-500.0,0.00033547,4]
[392753635,1761917442301,-500.0,0.00033547,4]
[392753636,1761917442311,-500.0,0.00033547,4]
[392753637,1761917442320,-500.0,0.00033547,4]
[392753638,1761917442329,-500.0,0.00033547,4]
[392753639,1761917442338,-1977.25984,0.00033547,31]
[392753640,1761917442347,-846.94270602,0.00033547,31]
[392753641,1761917442458,-92.07443417,0.00033547,31]
[392753658,1761917443610,-155.07539465,0.00033516,2]
[392753659,1761917443619,-500.0,0.00033546,4]
[392753661,1761917443702,-1038.24269981,0.00033547,31]
[392753662,1761917443714,-387.5052615,0.00033547,31]
[392753663,1761917443726,-309.7265145,0.00033547,31]
[392753664,1761917443735,-697.231776,0.00033547,31]
[392753665,1761917443744,-1977.25984,0.00033547,31]
[392753666,1761917443753,-697.231776,0.00033547,31]
[392753667,1761917443763,-1977.25984,0.00033547,31]
[392753668,1761917443774,-697.231776,0.00033547,31]
[392753669,1761917443783,-500.0,0.00033547,4]
[392753670,1761917443792,-697.231776,0.00033547,31]
[392753671,1761917443802,-1447.24117238,0.00033547,31]
[392753672,1761917443814,-530.01866762,0.00033547,31]
[392753673,1761917443823,-697.231776,0.00033547,31]
[392753674,1761917443833,-15.51015928,0.00033547,31]
[392753694,1761917451399,9850.01,0.000255,2]
[392753695,1761917451421,149.99,0.000255,2]
[392753696,1761917462214,10000.0,0.000255,2]
[392753698,1761917478474,218.706,0.00030137,120]
[392753704,1761917879952,166.57,0.00018182,4]
[392753707,1761918074302,515.83395642,0.00037216,120]
[392753742,1761918632671,-176.0,0.00026137,19]
[392753743,1761918632681,-169.58352199,0.00028294,5]
[392753744,1761918632690,-591.0274796,0.00033342,30]
[392753745,1761918632701,-546.0,0.00033375,7]
[392753746,1761918632711,-1932.20734114,0.00033387,2]
[392753747,1761918632720,-155.07539465,0.00033442,2]
[392753748,1761918632729,-1600.0,0.00033443,3]
[392753749,1761918632738,-1173.23791628,0.00033444,2]
[392753750,1761918632747,-155.07539465,0.00033445,2]
[392753751,1761918632759,-400.0,0.00033445,2]
[392753752,1761918632768,-47.61682392,0.00033446,4]
[392753753,1761918632787,-341.08317608,0.00033446,4]
[392753754,1761918632797,-4082.77114712,0.00033446,2]
[392753796,1761918638592,-1806.08717078,0.00033446,2]
[392753798,1761918638602,-155.07539465,0.00033448,2]
[392753800,1761918638611,-151.0,0.00033527,2]
[392753802,1761918638621,-151.0,0.00033527,2]
[392753804,1761918638630,-151.0,0.00033527,2]
[392753806,1761918638640,-151.0,0.00033527,2]
[392753808,1761918638649,-151.0,0.00033527,2]
[392753810,1761918638659,-151.0,0.00033527,2]
[392753812,1761918638668,-151.0,0.00033527,2]
[392753814,1761918638679,-151.0,0.00033527,2]
[392753816,1761918638688,-151.0,0.00033527,2]
[392753818,1761918638697,-151.0,0.00033527,2]
[392753820,1761918638706,-151.0,0.00033527,2]
[392753822,1761918638715,-1000.0,0.00033527,2]
[392753824,1761918638724,-151.0,0.00033527,2]
[392753826,1761918638733,-151.0,0.00033527,2]
[392753828,1761918638743,-530.26779151,0.00033527,2]
[392753830,1761918638752,-151.0,0.00033527,2]
[392753832,1761918638762,-151.0,0.00033527,2]
[392753834,1761918638771,-151.0,0.00033527,2]
[392753836,1761918638780,-151.0,0.00033527,2]
[392753838,1761918638790,-151.0,0.00033527,2]
[392753840,1761918638799,-151.0,0.00033527,2]
[392753842,1761918638809,-151.0,0.00033527,2]
[392753844,1761918638818,-205.292485,0.00033532,2]
[392753846,1761918638827,-242.86,0.00033533,3]
[392753847,1761918638836,-728.6,0.00033533,3]
[392753848,1761918638846,-500.0,0.00033533,7]
[392753850,1761918638856,-500.0,0.00033533,7]
[392753852,1761918638866,-500.0,0.00033533,7]
[392753854,1761918638875,-500.0,0.00033533,7]
[392753856,1761918638885,-500.0,0.00033533,7]
[392753858,1761918638895,-500.0,0.00033533,7]
[392753860,1761918638904,-500.0,0.00033533,7]
[392753862,1761918638914,-500.0,0.00033533,7]
[392753864,1761918638923,-177.19477351,0.00033533,7]
[392753866,1761918638932,-500.0,0.00033533,7]
[392753868,1761918638942,-500.0,0.00033533,7]
[392753870,1761918638951,-500.0,0.00033533,7]
[392753872,1761918638961,-500.0,0.00033533,7]
[392753874,1761918638971,-500.0,0.00033533,7]
[392753876,1761918638980,-500.0,0.00033533,7]
[392753878,1761918638990,-500.0,0.00033533,7]
[392753880,1761918639000,-500.0,0.00033533,7]
[392753882,1761918639015,-500.0,0.00033533,7]
[392753884,1761918639024,-500.0,0.00033533,7]
[392753886,1761918639034,-500.0,0.00033533,7]
[392753888,1761918639044,-500.0,0.00033533,7]
[392753890,1761918639053,-500.0,0.00033533,7]
[392753892,1761918639063,-500.0,0.00033533,7]
[392753894,1761918639076,-500.0,0.00033533,7]
[392753896,1761918639086,-500.0,0.00033533,7]
[392753898,1761918639095,-500.0,0.00033533,7]
[392753900,1761918639104,-500.0,0.00033533,7]
[392753902,1761918639113,-500.0,0.00033533,7]
[392753903,1761918639122,-500.0,0.00033533,7]
[392753905,1761918639132,-500.0,0.00033533,7]
[392753907,1761918639142,-500.0,0.00033533,7]
[392753919,1761918639243,-382.0856451,0.00033533,7]
[392753921,1761918639253,-500.0,0.00033533,7]
[392753923,1761918639264,-500.0,0.00033533,7]
[392753925,1761918639273,-500.0,0.00033533,7]
[392753928,1761918639293,-266.73682595,0.00033533,7]
[392753930,1761918639308,-233.26317405,0.00033533,7]
[392753932,1761918639319,-500.0,0.00033533,7]
[392753934,1761918639328,-500.0,0.00033533,7]
[392753936,1761918639338,-205.292485,0.00033533,2]
[392753938,1761918639348,-500.0,0.00033534,4]
[392753939,1761918639358,-500.0,0.00033534,4]
[392753941,1761918639368,-500.0,0.00033534,4]
[392753943,1761918639378,-500.0,0.00033534,4]
[392753944,1761918639388,-500.0,0.00033534,4]
[392753946,1761918639398,-500.0,0.00033534,4]
[392753948,1761918639408,-500.0,0.00033534,4]
[392753949,1761918639419,-500.0,0.00033534,4]
[392753950,1761918639429,-500.0,0.00033534,4]
[392753952,1761918639439,-500.0,0.00033534,4]
[392753953,1761918639449,-500.0,0.00033534,4]
[392753954,1761918639459,-500.0,0.00033534,4]
[392753955,1761918639469,-2442.75,0.00033534,4]
[392753957,1761918639478,-523.29152344,0.00033534,4]
[392753959,1761918639488,-615.877455,0.00033534,2]
[392753960,1761918639497,-500.0,0.00033535,4]
[392753961,1761918639509,-500.0,0.00033535,4]
[392753962,1761918639519,-500.0,0.00033535,4]
[392753963,1761918639529,-502.25189236,0.00033535,4]
[392753964,1761918639540,-501.97462494,0.00033535,4]
[392753965,1761918639550,-538.96948175,0.00033535,4]
[392753966,1761918639560,-500.0,0.00033535,4]
[392753967,1761918639570,-500.0,0.00033535,4]
[392753968,1761918639580,-500.0,0.00033535,4]
[392753969,1761918639589,-500.0,0.00033535,4]
[392753970,1761918639600,-500.0,0.00033535,4]
[392753971,1761918639609,-500.0,0.00033535,4]
[392753972,1761918639619,-500.0,0.00033535,4]
[392753973,1761918639629,-500.0,0.00033535,4]
[392753974,1761918639639,-500.0,0.00033535,4]
[392753975,1761918639648,-500.0,0.00033535,4]
[392753976,1761918639658,-500.0,0.00033535,4]
[392753977,1761918639667,-500.0,0.00033535,4]
[392753978,1761918639677,-500.0,0.00033535,4]
[392753979,1761918639687,-500.0,0.00033535,4]
[392753980,1761918639696,-500.0,0.00033535,4]
[392753981,1761918639705,-500.0,0.00033535,4]
[392753982,1761918639715,-28.10875411,0.00033535,4]
[392753983,1761918639728,-498.142,0.00033535,4]
[392753993,1761918640830,-382.81924589,0.00033535,4]
[392753994,1761918640840,-76.13155411,0.00033535,4]
[392753995,1761918640890,-423.86844589,0.00033535,4]
[392753996,1761918640899,-88.33649784,0.00033535,4]
[392754019,1761919054502,5852.44484341,0.00037212,60]
[392754020,1761919168156,-150.0,0.0002589,2]
[392754022,1761919230227,2443.71756783,0.0002551,2]
[392754023,1761919239441,3098.42953363,0.0002551,2]
[392754024,1761919352216,-231.0,0.0002589,2]
[392754028,1761919456035,231.667933,0.00013699,2]
[392754029,1761919456253,231.667933,0.00020187,2]
[392754030,1761919456736,-231.667933,0.00026676,2]
[392754065,1761919831784,-200.0,0.0002789,2]
[392754066,1761919831794,-210.657321,0.00032314,2]
[392754067,1761919831803,-7.27904714,0.00032321,2]
[392754068,1761919831900,-794.51707626,0.00032321,2]
[392754069,1761919831910,-231.667933,0.00033165,2]
[392754070,1761919831920,-300.0,0.00033346,3]
[392754071,1761919831929,-400.0,0.00033346,2]
[392754072,1761919831939,-1200.0,0.00033346,3]
[392754073,1761919831949,-300.0,0.00033346,3]
[392754074,1761919831959,-500.0,0.00033347,7]
[392754075,1761919831968,-500.0,0.00033347,2]
[392754077,1761919831978,-500.0,0.00033347,7]
[392754086,1761919832056,-500.0,0.00033347,7]
[392754088,1761919832066,-500.0,0.00033347,7]
[392754090,1761919832075,-500.0,0.00033347,7]
[392754092,1761919832084,-500.0,0.00033347,7]
[392754094,1761919832094,-549.5268034,0.00033347,7]
[392754096,1761919832103,-500.0,0.00033347,2]
[392754098,1761919832112,-500.0,0.00033347,7]
[392754100,1761919832121,-500.0,0.00033347,7]
[392754102,1761919832130,-500.0,0.00033347,7]
[392754104,1761919832140,-500.0,0.00033347,7]
[392754106,1761919832148,-500.0,0.00033347,2]
[392754108,1761919832158,-500.0,0.00033347,7]
[392754109,1761919832167,-154.54909369,0.00033347,7]
[392754110,1761919832176,-500.0,0.00033347,7]
[392754111,1761919832185,-500.0,0.00033347,7]
[392754112,1761919832194,-500.0,0.00033347,2]
[392754113,1761919832203,-500.0,0.00033347,7]
[392754114,1761919832213,-500.0,0.00033347,7]
[392754115,1761919832222,-300.59193503,0.00033347,7]
[392754116,1761919832231,-500.0,0.00033347,2]
[392754117,1761919832240,-500.0,0.00033347,7]
[392754118,1761919832249,-500.0,0.00033347,7]
[392754119,1761919832258,-500.0,0.00033347,7]
[392754120,1761919832267,-500.0,0.00033347,7]
[392754121,1761919832277,-412.15168732,0.00033347,2]
[392754122,1761919832287,-500.0,0.00033347,7]
[392754123,1761919832296,-206.21332768,0.00033347,7]
[392754124,1761919832305,-500.0,0.00033347,2]
[392754125,1761919832314,-500.0,0.00033347,7]
[392754126,1761919832327,-500.0,0.00033347,7]
[392754127,1761919832344,-500.0,0.00033347,7]
[392754128,1761919832354,-500.0,0.00033347,7]
[392754129,1761919832363,-500.0,0.00033347,7]
[392754130,1761919832373,-500.0,0.00033347,7]
[392754131,1761919832384,-500.0,0.00033347,7]
[392754132,1761919832393,-500.0,0.00033347,7]
[392754133,1761919832403,-500.0,0.00033347,7]
[392754134,1761919832413,-500.0,0.00033347,7]
[392754135,1761919832423,-500.0,0.00033347,7]
[392754136,1761919832433,-500.0,0.00033347,2]
[392754137,1761919832443,-500.0,0.00033347,7]
[392754138,1761919832451,-500.0,0.00033347,7]
[392754139,1761919832460,-544.78015256,0.00033347,7]
[392754140,1761919832470,-500.0,0.00033347,7]
[392754141,1761919832479,-500.0,0.00033347,7]
[392754142,1761919832488,-500.0,0.00033347,2]
[392754143,1761919832503,-368.04456306,0.00033347,7]
[392754144,1761919832523,-500.0,0.00033347,7]